fUST/lending_fUST_20240222
["ID","MTS","AMOUNT","RATE_DAILY","PERIOD"]
[314811796,1708564232854,-2050.41186986,0.00020495,2]
[314811797,1708564232865,-2265.28,0.00020591,3]
[314811798,1708564232875,-2884.45,0.00020591,3]
[314811799,1708564232885,-2403.71,0.00020591,3]
[314811800,1708564232895,-2003.09,0.00020591,3]
[314811801,1708564232904,-295.38922261,0.00020599,2]
[314811802,1708564232913,-500.0,0.000206,2]
[314811803,1708564232923,-500.0,0.000206,2]
[314811804,1708564232932,-500.0,0.000206,2]
[314811805,1708564232942,-500.0,0.000206,2]
[314811806,1708564232951,-500.0,0.000206,2]
[314811807,1708564232961,-500.0,0.000206,2]
[314811808,1708564232970,-2669.71,0.000206,2]
[314811809,1708564232980,-500.0,0.000206,2]
[314811810,1708564232989,-500.0,0.000206,2]
[314811811,1708564233000,-500.0,0.000206,2]
[314811812,1708564233009,-2429.91,0.000206,2]
[314811813,1708564233018,-500.0,0.000206,2]
[314811814,1708564233027,-500.0,0.000206,2]
[314811815,1708564233037,-500.0,0.000206,2]
[314811816,1708564233045,-500.0,0.000206,2]
[314811817,1708564233054,-35940.99991656,0.00020601,2]
[314812480,1708564246642,-24900.0,0.00020109,2]
[314812481,1708564246652,-500.0,0.000206,2]
[314812482,1708564246661,-19061.31475341,0.00020601,2]
[314812483,1708564246670,-4363.73028951,0.00020601,2]
[314812485,1708564246679,-500.0,0.00020802,2]
[314812487,1708564246688,-500.0,0.00020802,2]
[314812489,1708564246698,-500.0,0.00020802,2]
[314812491,1708564246707,-500.0,0.00020802,2]
[314812493,1708564246716,-500.0,0.00020874,2]
[314812495,1708564246726,-500.0,0.00020874,2]
[314812498,1708564246735,-500.0,0.00020874,2]
[314812499,1708564246744,-500.0,0.00020874,2]
[314812502,1708564246754,-2669.71,0.00020874,2]
[314812503,1708564246764,-406.78683739,0.00020874,2]
[314812505,1708564246774,-500.0,0.00020874,2]
[314812507,1708564246783,-500.0,0.00020874,2]
[314812509,1708564246793,-2429.91,0.00020874,2]
[314812511,1708564246803,-500.0,0.00020874,2]
[314812513,1708564246812,-500.0,0.00020874,2]
[314812515,1708564246821,-500.0,0.00020874,2]
[314812517,1708564246831,-500.0,0.00020874,2]
[314812519,1708564246840,-500.0,0.00020874,2]
[314812521,1708564246849,-500.0,0.00021076,2]
[314812523,1708564246858,-500.0,0.00021076,2]
[314812525,1708564246867,-500.0,0.00021076,2]
[314812527,1708564246877,-500.0,0.00021076,2]
[314812529,1708564246886,-415.67237331,0.0002111,2]
[314812532,1708564246896,-1000.0,0.0002111,2]
[314812534,1708564246905,-178.14530284,0.0002111,2]
[314812536,1708564246914,-200.06311394,0.0002111,2]
[314812538,1708564246923,-700.0,0.0002111,2]
[314812540,1708564246932,-344.14337439,0.0002111,2]
[314812542,1708564246941,-582.83718833,0.0002111,2]
[314812544,1708564246950,-1000.0,0.0002111,2]
[314812545,1708564246959,-375.02895997,0.0002111,2]
[314812548,1708564246969,-500.0,0.00021148,2]
[314812549,1708564246978,-500.0,0.00021148,2]
[314812551,1708564246987,-500.0,0.00021148,2]
[314812553,1708564246996,-500.0,0.00021148,2]
[314812556,1708564247006,-2669.71,0.00021148,2]
[314812557,1708564247016,-500.0,0.00021148,2]
[314812559,1708564247025,-2429.91,0.00021148,2]
[314812561,1708564247035,-500.0,0.00021148,2]
[314812564,1708564247045,-188.18932815,0.00021148,2]
[314812565,1708564247054,-500.0,0.00021148,2]
[314812567,1708564247063,-500.0,0.00021148,2]
[314812569,1708564247072,-500.0,0.00021148,2]
[314812571,1708564247082,-500.0,0.00021349,2]
[314812573,1708564247091,-500.0,0.00021349,2]
[314812575,1708564247101,-500.0,0.00021349,2]
[314812577,1708564247110,-500.0,0.00021349,2]
[314812579,1708564247119,-500.0,0.00021349,2]
[314812581,1708564247129,-500.0,0.00021349,2]
[314812583,1708564247138,-500.0,0.00021349,2]
[314812585,1708564247148,-500.0,0.00021349,2]
[314812587,1708564247157,-1020.85,0.00021349,2]
[314812589,1708564247167,-500.0,0.00021349,2]
[314812592,1708564247176,-935.47,0.00021349,2]
[314812593,1708564247185,-500.0,0.00021349,2]
[314812596,1708564247196,-500.0,0.00021349,2]
[314812597,1708564247205,-500.0,0.00021349,2]
[314812600,1708564247214,-500.0,0.00021349,2]
[314812602,1708564247224,-500.0,0.00021349,2]
[314812603,1708564247233,-500.0,0.00021349,2]
[314812605,1708564247243,-500.0,0.00021349,2]
[314812608,1708564247252,-500.0,0.00021349,2]
[314812609,1708564247261,-500.0,0.00021349,2]
[314812611,1708564247271,-4389.48,0.00021349,2]
[314812613,1708564247280,-860.72,0.00021349,2]
[314812615,1708564247290,-1716.99,0.00021349,2]
[314812617,1708564247299,-500.0,0.00021349,2]
[314812619,1708564247308,-500.0,0.00021349,2]
[314812621,1708564247317,-500.0,0.00021349,2]
[314812623,1708564247326,-642.8,0.00021349,2]
[314812625,1708564247335,-500.0,0.00021349,2]
[314812627,1708564247344,-500.0,0.00021349,2]
[314812629,1708564247353,-500.0,0.00021349,2]
[314812632,1708564247364,-500.0,0.00021349,2]
[314812634,1708564247373,-500.0,0.00021422,2]
[314812635,1708564247382,-500.0,0.00021422,2]
[314812637,1708564247394,-500.0,0.00021422,2]
[314812639,1708564247404,-500.0,0.00021422,2]
[314812641,1708564247413,-2669.71,0.00021422,2]
[314812643,1708564247421,-500.0,0.00021422,2]
[314812645,1708564247430,-2429.91,0.00021422,2]
[314812647,1708564247441,-500.0,0.00021422,2]
[314812649,1708564247450,-500.0,0.00021422,2]
[314812651,1708564247459,-500.0,0.00021422,2]
[314812653,1708564247469,-152.26839049,0.00021427,2]
[314812655,1708564247479,-620.94920932,0.00021609,2]
[314812657,1708564247488,-500.0,0.00021622,2]
[314812659,1708564247497,-1556.87,0.00021622,2]
[314812662,1708564247507,-1354.43,0.00021622,2]
[314812664,1708564247516,-758.98,0.00021622,2]
[314812666,1708564247526,-500.0,0.00021622,2]
[314812668,1708564247535,-592.9,0.00021622,2]
[314812682,1708564247655,-1173.03,0.00021622,2]
[314812684,1708564247664,-751.56,0.00021622,2]
[314812686,1708564247674,-500.0,0.00021623,2]
[314812688,1708564247682,-500.0,0.00021623,2]
[314812690,1708564247691,-500.0,0.00021623,2]
[314812692,1708564247701,-500.0,0.00021623,2]
[314812694,1708564247710,-500.0,0.00021623,2]
[314812696,1708564247719,-500.0,0.00021623,2]
[314812697,1708564247728,-1020.85,0.00021623,2]
[314812699,1708564247737,-500.0,0.00021623,2]
[314812701,1708564247746,-935.47,0.00021623,2]
[314812703,1708564247755,-500.0,0.00021623,2]
[314812706,1708564247766,-338.69546401,0.00021623,2]
[314812707,1708564247776,-500.0,0.00021623,2]
[314812709,1708564247785,-280.67304609,0.00021623,2]
[314812711,1708564247794,-500.0,0.00021623,2]
[314812714,1708564247803,-500.0,0.00021623,2]
[314812715,1708564247812,-244.35434703,0.00021623,2]
[314812717,1708564247822,-500.0,0.00021623,2]
[314812719,1708564247831,-4389.48,0.00021623,2]
[314812721,1708564247840,-860.72,0.00021623,2]
[314812724,1708564247849,-1716.99,0.00021623,2]
[314812725,1708564247858,-500.0,0.00021623,2]
[314812727,1708564247868,-642.8,0.00021623,2]
[314812729,1708564247877,-500.0,0.00021623,2]
[314812732,1708564247886,-500.0,0.00021623,2]
[314812733,1708564247896,-500.0,0.00021623,2]
[314812736,1708564247905,-500.0,0.00021623,2]
[314812737,1708564247914,-500.0,0.00021696,2]
[314812740,1708564247923,-500.0,0.00021696,2]
[314812741,1708564247933,-500.0,0.00021696,2]
[314812743,1708564247943,-500.0,0.00021696,2]
[314812744,1708564247951,-2669.71,0.00021696,2]
[314812745,1708564247960,-500.0,0.00021696,2]
[314812746,1708564247969,-2429.91,0.00021696,2]
[314812747,1708564247979,-295.67,0.00021696,2]
[314812749,1708564247988,-500.0,0.00021696,2]
[314812751,1708564247998,-7265.21044184,0.00021857,2]
[314812753,1708564248012,-17440.90075564,0.00021857,2]
[314812755,1708564248023,-24706.11119748,0.00021871,2]
[314812756,1708564248032,-24706.11119748,0.00021881,2]
[314812757,1708564248041,-500.0,0.00021896,2]
[314812758,1708564248050,-1556.87,0.00021896,2]
[314812759,1708564248059,-1354.43,0.00021896,2]
[314812760,1708564248069,-758.98,0.00021896,2]
[314812761,1708564248079,-500.0,0.00021896,2]
[314812762,1708564248088,-592.9,0.00021896,2]
[314812763,1708564248097,-1173.03,0.00021896,2]
[314812765,1708564248107,-751.56,0.00021896,2]
[314812766,1708564248116,-500.0,0.00021897,2]
[314812767,1708564248125,-500.0,0.00021897,2]
[314812768,1708564248135,-500.0,0.00021897,2]
[314812769,1708564248145,-500.0,0.00021897,2]
[314812770,1708564248155,-500.0,0.00021897,2]
[314812771,1708564248164,-1020.85,0.00021897,2]
[314812772,1708564248173,-500.0,0.00021897,2]
[314812774,1708564248183,-935.47,0.00021897,2]
[314812775,1708564248192,-500.0,0.00021897,2]
[314812776,1708564248201,-500.0,0.00021897,2]
[314812777,1708564248210,-500.0,0.00021897,2]
[314812778,1708564248219,-500.0,0.00021897,2]
[314812779,1708564248229,-4389.48,0.00021897,2]
[314812780,1708564248238,-860.72,0.00021897,2]
[314812781,1708564248247,-1716.99,0.00021897,2]
[314812782,1708564248256,-642.8,0.00021897,2]
[314812783,1708564248267,-500.0,0.00021897,2]
[314812784,1708564248276,-500.0,0.00021897,2]
[314812786,1708564248285,-500.0,0.00021899,2]
[314812787,1708564248295,-500.0,0.00021899,2]
[314812788,1708564248304,-500.0,0.00021899,2]
[314812789,1708564248313,-500.0,0.00021899,2]
[314812790,1708564248322,-500.0,0.00021899,2]
[314812791,1708564248331,-291.61,0.00021899,2]
[314812792,1708564248340,-500.0,0.00021899,2]
[314812793,1708564248349,-500.0,0.00021899,2]
[314812795,1708564248358,-500.0,0.00021899,2]
[314812796,1708564248367,-500.0,0.00021899,2]
[314812797,1708564248377,-193.51978747,0.00021899,2]
[314812798,1708564248387,-500.0,0.00021899,2]
[314812799,1708564248398,-500.0,0.00021899,2]
[314812800,1708564248407,-40812.51278523,0.000219,2]
[314812801,1708564248416,-500.0,0.00021917,2]
[314812802,1708564248426,-500.0,0.00021917,2]
[314812803,1708564248437,-400.52042383,0.00021917,2]
[314812804,1708564248446,-603.34260693,0.00021917,5]
[314812805,1708564248456,-547.15,0.00021917,2]
[314812806,1708564248466,-10000.0,0.00021918,2]
[314812807,1708564248475,-150.293475,0.0002197,2]
[314812808,1708564248484,-500.0,0.0002197,2]
[314812809,1708564248494,-500.0,0.0002197,2]
[314812810,1708564248503,-500.0,0.0002197,2]
[314812811,1708564248512,-2669.71,0.0002197,2]
[314812812,1708564248524,-500.0,0.0002197,2]
[314812813,1708564248533,-2429.91,0.0002197,2]
[314812814,1708564248542,-573.61,0.0002197,2]
[314812815,1708564248552,-3146.25713957,0.00021999,3]
[314812816,1708564248561,-1079.76281768,0.00021999,4]
[314812817,1708564248570,-1446.63167794,0.00022,3]
[314812818,1708564248579,-282477.13399474,0.00022,2]
[314812819,1708564248592,-23284.57825193,0.00022,2]
[314812820,1708564248604,-160766.29112367,0.00022,2]
[314812821,1708564248615,-15448.1955684,0.00022,2]
[314812845,1708564478642,3109.25064946,0.00029,30]
[314812846,1708564644284,379.514927,0.00019416,2]
[314812847,1708564679075,166.666666,0.00019178,2]
[314812848,1708564743258,1521.7117194,0.00019152,2]
[314812849,1708564834262,37375.625673,0.00019082,2]
[314812850,1708565133972,189.757463,0.00019347,2]
[314812851,1708565168645,166.666666,0.00019178,2]
[314812883,1708565431889,-1311.5580544,0.00019645,2]
[314812884,1708565431898,-691.36899456,0.00019646,2]
[314812885,1708565431907,-166.666666,0.00019647,2]
[314812886,1708565431916,-399.49806037,0.000199,2]
[314812887,1708565431926,-15.10822467,0.00020116,2]
[314812888,1708565431937,-151.55844133,0.00020116,2]
[314812889,1708565431946,-159.04221512,0.00020262,4]
[314812890,1708565431954,-559.40026898,0.00020263,2]
[314812891,1708565431963,-500.0,0.00020263,2]
[314812892,1708565431973,-500.0,0.00020263,2]
[314812893,1708565431982,-500.0,0.00020263,2]
[314812894,1708565431991,-328.55692116,0.00020263,2]
[314812895,1708565432000,-500.0,0.00020263,2]
[314812896,1708565432009,-500.0,0.00020263,2]
[314812897,1708565432018,-500.0,0.00020263,2]
[314812898,1708565432027,-500.0,0.00020263,2]
[314812899,1708565432036,-500.0,0.00020263,2]
[314812900,1708565432045,-500.0,0.00020263,2]
[314812901,1708565432054,-1427.13,0.00020263,2]
[314812902,1708565432064,-1241.56,0.00020263,2]
[314812903,1708565432073,-500.0,0.00020263,2]
[314812904,1708565432082,-500.0,0.00020263,2]
[314812905,1708565432091,-895.47,0.00020263,2]
[314812906,1708565432101,-500.0,0.00020263,2]
[314812907,1708565432110,-500.0,0.00020263,2]
[314812908,1708565432119,-500.0,0.00020263,2]
[314812909,1708565432128,-543.49,0.00020263,2]
[314812910,1708565432138,-500.0,0.00020263,2]
[314812911,1708565432147,-1075.28,0.00020263,2]
[314812912,1708565432156,-500.0,0.00020263,2]
[314812913,1708565432165,-500.0,0.00020263,2]
[314812914,1708565432174,-688.93,0.00020263,2]
[314812915,1708565432183,-500.80808631,0.00020263,2]
[314812916,1708565432192,-500.41073539,0.00020263,2]
[314812917,1708565432201,-230.8133386,0.00020263,2]
[314812918,1708565432211,-187.87019096,0.000205,2]
[314812919,1708565432220,-500.0,0.00020537,2]
[314812920,1708565432229,-500.0,0.00020537,2]
[314812921,1708565432239,-500.0,0.00020537,2]
[314812922,1708565432248,-1427.13,0.00020537,2]
[314812923,1708565432257,-1241.56,0.00020537,2]
[314812924,1708565432267,-500.0,0.00020537,2]
[314812925,1708565432275,-500.0,0.00020537,2]
[314812926,1708565432284,-895.47,0.00020537,2]
[314812927,1708565432295,-500.0,0.00020537,2]
[314812928,1708565432304,-500.0,0.00020537,2]
[314812929,1708565432313,-543.49,0.00020537,2]
[314812930,1708565432322,-1075.28,0.00020537,2]
[314812931,1708565432331,-500.0,0.00020537,2]
[314812932,1708565432340,-688.93,0.00020537,2]
[314812933,1708565432350,-166.666666,0.00020585,2]
[314812934,1708565432359,-6302.04,0.00020591,3]
[314812935,1708565432368,-5251.7,0.00020591,3]
[314812936,1708565432377,-4376.42,0.00020591,3]
[314812937,1708565432386,-210.78383145,0.00020599,2]
[314812938,1708565432395,-1822.44,0.00020599,2]
[314812939,1708565432404,-500.0,0.000206,2]
[314812940,1708565432413,-500.0,0.000206,2]
[314812941,1708565432423,-500.0,0.000206,2]
[314812942,1708565432432,-500.0,0.000206,2]
[314812943,1708565432442,-500.0,0.000206,2]
[314812944,1708565432451,-893.25,0.000206,2]
[314812945,1708565432461,-500.0,0.000206,2]
[314812946,1708565432470,-500.0,0.000206,2]
[314812947,1708565432479,-939.01,0.000206,2]
[314812948,1708565432488,-500.0,0.000206,2]
[314812949,1708565432498,-500.0,0.000206,2]
[314812950,1708565432508,-500.0,0.000206,2]
[314812951,1708565432517,-500.0,0.000206,2]
[314812952,1708565432526,-500.0,0.000206,2]
[314812953,1708565432535,-500.0,0.000206,2]
[314812954,1708565432545,-3840.79,0.000206,2]
[314812955,1708565432554,-500.0,0.000206,2]
[314812956,1708565432563,-753.13,0.000206,2]
[314812957,1708565432573,-1502.36,0.000206,2]
[314812958,1708565432581,-500.0,0.000206,2]
[314812959,1708565432591,-500.0,0.000206,2]
[314812960,1708565432599,-562.45,0.000206,2]
[314812961,1708565432608,-500.16561714,0.000206,2]
[314812962,1708565432617,-2002.29,0.000206,2]
[314812963,1708565432626,-500.0,0.000206,2]
[314812964,1708565432635,-492.12918064,0.00020601,2]
[314812965,1708565432644,-7147.31199316,0.00020601,2]
[314813302,1708565440910,-500.0,0.00020263,2]
[314813304,1708565440920,-500.0,0.00020263,2]
[314813306,1708565440930,-500.0,0.00020537,2]
[314813308,1708565440939,-500.0,0.00020537,2]
[314813310,1708565440948,-13997.71660122,0.00020601,2]
[314813312,1708565440960,-1935.18255823,0.00020601,2]
[314813314,1708565440969,-86.3812559,0.00020601,2]
[314813316,1708565440980,-9058.96086599,0.00020601,2]
[314813318,1708565440990,-222.49847389,0.0002079,2]
[314813320,1708565440999,-733.15,0.00020801,3]
[314813322,1708565441008,-477.91788385,0.00020811,2]
[314815864,1708565548352,389.81307539,0.000189,2]
[314815865,1708565636624,166.666666,0.00019178,2]
[314815866,1708565648492,24900.0,0.00019276,2]
[314815867,1708565984677,1437.61084278,0.0003,120]
[314815868,1708565999661,240.329768,0.00019283,2]
[314815869,1708566123918,252.8836677,0.00019186,2]
[314815870,1708566149658,259.8753836,0.000189,2]
[314815871,1708566170590,166.666666,0.00019178,2]
[314815872,1708566498648,240.329768,0.00019333,2]
[314815875,1708566628805,166.666666,0.00019178,2]
[314816000,1708566637918,-155.00155002,0.00019513,2]
[314816002,1708566637928,-719.08152352,0.00019514,2]
[314816003,1708566637937,-1311.5580544,0.00019515,2]
[314816005,1708566637947,-691.46246636,0.00019516,2]
[314816007,1708566637956,-605.23143614,0.00019518,2]
[314816009,1708566637966,-166.666666,0.0001964,2]
[314816011,1708566637976,-960.71148446,0.00019647,2]
[314816013,1708566637985,-166.666666,0.00020101,2]
[314816016,1708566637995,-500.0,0.00020263,2]
[314816018,1708566638005,-500.0,0.00020263,2]
[314816020,1708566638015,-287.06960355,0.00020263,2]
[314816022,1708566638028,-212.93039645,0.00020263,2]
[314816024,1708566638037,-500.0,0.00020263,2]
[314816026,1708566638046,-500.0,0.00020263,2]
[314816028,1708566638055,-500.0,0.00020263,2]
[314816030,1708566638064,-1227.11,0.00020263,2]
[314816032,1708566638076,-500.0,0.00020263,2]
[314816034,1708566638085,-500.0,0.00020263,2]
[314816036,1708566638095,-500.0,0.00020263,2]
[314816038,1708566638108,-1312.94,0.00020263,2]
[314816040,1708566638117,-500.0,0.00020263,2]
[314816042,1708566638126,-500.0,0.00020263,2]
[314816044,1708566638135,-500.0,0.00020263,2]
[314816046,1708566638146,-500.0,0.00020263,2]
[314816048,1708566638155,-500.0,0.00020263,2]
[314816050,1708566638164,-307.39314497,0.00020263,2]
[314816052,1708566638174,-201.31686207,0.000205,2]
[314816054,1708566638183,-500.0,0.00020537,2]
[314816056,1708566638193,-501.11862362,0.00020537,2]
[314816058,1708566638202,-500.0,0.00020537,2]
[314816060,1708566638212,-500.0,0.00020537,2]
[314816062,1708566638221,-500.0,0.00020537,2]
[314816064,1708566638231,-500.0,0.00020537,2]
[314816066,1708566638240,-1227.11,0.00020537,2]
[314816068,1708566638249,-500.0,0.00020537,2]
[314816070,1708566638258,-500.0,0.00020537,2]
[314816072,1708566638267,-500.0,0.00020537,2]
[314816074,1708566638276,-1312.94,0.00020537,2]
[314816076,1708566638285,-486.89886215,0.00020537,2]
[314816078,1708566638297,-13.10113785,0.00020537,2]
[314816080,1708566638306,-501.68862801,0.00020537,2]
[314816082,1708566638315,-500.08592915,0.00020537,2]
[314816084,1708566638326,-500.0,0.00020537,2]
[314816086,1708566638334,-435.71791319,0.00020537,2]
[314816088,1708566638346,-64.28208681,0.00020537,2]
[314816090,1708566638355,-166.666666,0.00020562,2]
[314816092,1708566638364,-387.79521824,0.00020589,2]
[314816198,1708566641182,-112.20478176,0.00020589,2]
[314816199,1708566641191,-500.0,0.00020589,2]
[314816200,1708566641200,-166.84475696,0.00020589,2]
[314816236,1708566751437,173.25025573,0.000189,2]
[314816247,1708567108139,166.666666,0.00019231,2]
[314816254,1708567563632,166.666666,0.00019178,2]
[314816255,1708567744806,-691.46246636,0.00019676,2]
[314816256,1708567744827,-1311.5580544,0.00019677,2]
[314816257,1708567744849,-166.666666,0.00019681,2]
[314816284,1708567835002,-691.46246636,0.00019999,2]
[314816285,1708567835011,-579.31286895,0.00019999,2]
[314816286,1708567835056,-462.228,0.00019999,2]
[314816603,1708567841350,-270.01718545,0.00019999,2]
[314816604,1708567841359,-1042.46435677,0.0002,2]
[314816798,1708567843216,-272.32208624,0.0002,2]
[314816804,1708567843273,-359.65428581,0.0002,2]
[314816807,1708567843285,-2150.08927118,0.0002,2]
[314816809,1708567843294,-166.666666,0.00020184,2]
[314816811,1708567843304,-719.08152352,0.00020254,2]
[314816813,1708567843313,-202.70546638,0.00020501,2]
[314816815,1708567843322,-8226.76805191,0.00020579,2]
[314816817,1708567843332,-155.76816636,0.00020588,2]
[314816819,1708567843341,-500.0,0.00020588,2]
[314816822,1708567843358,-500.0,0.00020588,2]
[314816825,1708567843372,-500.0,0.00020588,2]
[314816827,1708567843381,-500.0,0.00020588,2]
[314816829,1708567843391,-500.0,0.00020589,2]
[314816831,1708567843401,-500.0,0.00020589,2]
[314816833,1708567843411,-500.0,0.00020589,2]
[314816835,1708567843421,-502.21388368,0.00020589,2]
[314816837,1708567843430,-500.0,0.00020589,2]
[314816839,1708567843440,-500.0,0.00020589,2]
[314816841,1708567843454,-500.0,0.00020589,2]
[314816843,1708567843464,-500.0,0.00020589,2]
[314816845,1708567843474,-500.0,0.00020589,2]
[314816847,1708567843484,-500.0,0.00020589,2]
[314816849,1708567843495,-500.0,0.00020589,2]
[314816851,1708567843505,-500.0,0.00020589,2]
[314816853,1708567843515,-500.0,0.00020589,2]
[314816855,1708567843525,-501.28160865,0.00020589,2]
[314816857,1708567843535,-500.0,0.00020589,2]
[314816859,1708567843545,-500.0,0.00020589,2]
[314816861,1708567843554,-500.0,0.00020589,2]
[314816863,1708567843564,-500.0,0.00020589,2]
[314816865,1708567843573,-609.72146854,0.00020589,2]
[314816867,1708567843583,-500.0,0.00020589,2]
[314816869,1708567843593,-500.0,0.00020589,2]
[314816871,1708567843603,-500.0,0.00020589,2]
[314816873,1708567843613,-998.83,0.00020589,2]
[314816875,1708567843623,-500.0,0.00020589,2]
[314816877,1708567843633,-500.0,0.00020589,2]
[314816879,1708567843643,-500.0,0.00020589,2]
[314816881,1708567843652,-289.03746674,0.00020589,2]
[314816883,1708567843661,-500.0,0.00020589,2]
[314816885,1708567843671,-500.0,0.00020589,2]
[314816887,1708567843680,-500.0,0.00020589,2]
[314816890,1708567843697,-3288.62,0.00020589,2]
[314816893,1708567843711,-500.0,0.00020589,2]
[314816895,1708567843725,-500.0,0.00020589,2]
[314816898,1708567843738,-3122.49,0.00020589,2]
[314816900,1708567843750,-637.91856588,0.00020589,2]
[314816902,1708567843763,-505.94395754,0.00020589,2]
[314816905,1708567843776,-500.0,0.00020589,2]
[314816907,1708567843787,-500.0,0.00020589,2]
[314816909,1708567843799,-500.0,0.00020589,2]
[314816911,1708567843810,-500.0,0.0002059,2]
[314816913,1708567843822,-2154.36,0.0002059,2]
[314816915,1708567843835,-1846.41,0.0002059,2]
[314816918,1708567843847,-500.0,0.0002059,2]
[314816920,1708567843858,-1216.47,0.0002059,2]
[314816922,1708567843871,-757.75,0.0002059,2]
[314816924,1708567843883,-740.87,0.0002059,2]
[314816926,1708567843894,-500.0,0.0002059,2]
[314816929,1708567843905,-502.84218231,0.0002059,2]
[314816931,1708567843917,-960.6,0.0002059,2]
[314816933,1708567843928,-1573.56,0.0002059,2]
[314816935,1708567843940,-4578.47,0.0002059,2]
[314816938,1708567843953,-2059.38,0.0002059,2]
[314816940,1708567843964,-550.31784742,0.00020598,2]
[314816942,1708567843975,-1153.31,0.00020598,2]
[314816944,1708567843984,-500.0,0.00020598,2]
[314816946,1708567843994,-500.0,0.00020598,2]
[314816948,1708567844005,-1177.91,0.00020598,2]
[314816950,1708567844017,-500.0,0.00020599,2]
[314816953,1708567844029,-323.87894373,0.00020599,2]
[314816955,1708567844042,-500.0,0.00020599,2]
[314816957,1708567844053,-500.0,0.00020599,2]
[314816959,1708567844064,-501.94314813,0.00020599,2]
[314816961,1708567844075,-638.73137795,0.00020599,2]
[314816963,1708567844086,-501.39564633,0.00020599,2]
[314816965,1708567844097,-500.0,0.00020599,2]
[314816968,1708567844110,-500.28282518,0.00020599,2]
[314816970,1708567844121,-175.76042166,0.00020601,2]
[314816972,1708567844133,-7693.40371754,0.00020601,2]
[314816974,1708567844143,-3825.01627397,0.00020601,2]
[314816976,1708567844153,-5000.0,0.00020601,2]
[314816978,1708567844162,-2622.83039548,0.00020601,2]
[314816980,1708567844173,-9101.88046346,0.00020601,2]
[314817171,1708567846196,-376.11627069,0.00020591,3]
[314817178,1708567846254,-576.20798546,0.00020591,3]
[314821788,1708568019123,166.666666,0.00019263,2]
[314821791,1708568489163,166.666666,0.00019215,2]
[314821793,1708568905392,486.00526367,0.00019215,2]
[314821794,1708568925309,270.00292426,0.00019215,2]
[314821795,1708568951305,270.00292426,0.00019215,2]
[314821798,1708568956506,166.666666,0.00019218,2]
[314821799,1708568969311,155.02635448,0.00019215,2]
[314821802,1708568991320,155.02635448,0.00019215,2]
[314821805,1708569007317,155.02635448,0.00019215,2]
[314821806,1708569027317,155.02635448,0.00019215,2]
[314821836,1708569038297,-166.666666,0.00019742,2]
[314821837,1708569038307,-1311.5580544,0.00020261,2]
[314821838,1708569038316,-166.666666,0.00020266,2]
[314821839,1708569038325,-1145.45375509,0.00020477,2]
[314821840,1708569038335,-202.70546637,0.00020489,2]
[314821841,1708569038345,-280.86267126,0.00020578,3]
[314821842,1708569038357,-2039.62972644,0.00020578,3]
[314822287,1708569043275,-261.63646538,0.00020578,3]
[314822293,1708569043325,155.02635448,0.00019215,2]
[314822295,1708569043338,-1231.66113692,0.00020578,3]
[314822297,1708569043351,-300.0,0.00020578,2]
[314822299,1708569043361,-1548.39302012,0.00020579,3]